Cogmind - Beta 13 @@@ ROGUE MODE // 2024.05.14 @ 18:58:16 Player: That1Guy Result: Destroyed by as-74372 with Assembled Heavy Rifle Performance ------------- Evolutions (1) 500 Regions Visited (3) 600 Robots Destroyed (29) 145 Value Destroyed (826) 826 Prototype IDs (0) 0 Alien Tech Used (0) 0 Bonus (41) 41 TOTAL SCORE: 2112 Bonus ------- High Alert Combat Kills 41 Cogmind --------- Core Integrity 0/400 Matter 325/350 Energy 66/100 System Corruption 10% Temperature Cool (0) Movement Core (50) Location -9/Mines Parts ------- > --- POWER (2) -------- (None) > --- PROPULSION (3) --- (None) > --- UTILITY (2) ------ Small Matter Pod > --- WEAPON (2) ------- Small Laser > --- INVENTORY (5) ---- (None) Peak State ------------ > --- POWER ------------ Light Deuterium Engine Light Deuterium Engine > --- PROPULSION ------- Carbon-fiber Leg Carbon-fiber Leg Carbon-fiber Leg > --- UTILITY ---------- Heat Sink Small Matter Pod > --- WEAPON ----------- Heavy Particle Cannon Heavy Particle Cannon > --- INVENTORY -------- Heat Sink Small Laser Grenade Launcher [Rating: 23] Favorites ----------- Power Light Deuterium Engine Engine Light Deuterium Engine Propulsion Carbon-fiber Leg Leg Carbon-fiber Leg Wheel Wheel Hover Unit Hover Unit Utility Heat Sink Device Heat Sink Storage Medium Matter Pod Protection Light Armor Plating Weapon Heavy Particle Cannon Energy Gun Medium Laser Energy Cannon Heavy Particle Cannon Ballistic Gun Light Assault Rifle Ballistic Cannon Light Cannon Launcher Grenade Launcher Slashing Weapon Mining Claw Build | -11 -10 -9 -9 ------- Run | Yrd Mat Mat Min Slots Evolved 2 | . . 2 . Power 1 | . . 1 . Propulsion 1 | . . 1 . Utility . | . . . . Weapon . | . . . . Parts Attached 50 | 6 12 27 5 Power 10 | 2 1 6 1 Engine 10 | 2 1 6 1 Core . | . . . . Reactor . | . . . . Propulsion 9 | 2 2 5 . Treads . | . . . . Leg 5 | . . 5 . Wheel 2 | 2 . . . Hover 2 | . 2 . . Flight . | . . . . Utility 9 | . 2 5 2 Device 5 | . 1 3 1 Storage 3 | . . 2 1 Processor . | . . . . Hackware . | . . . . Protection 1 | . 1 . . Artifact . | . . . . Weapon 22 | 2 7 11 2 Energy Gun 4 | 1 2 . 1 Energy Cannon 6 | . 1 5 . Ballistic Gun 1 | 1 . . . Ballistic Cannon 4 | . 1 3 . Launcher 4 | . 1 2 1 Special Weapon . | . . . . Impact Weapon . | . . . . Slashing Weapon 3 | . 2 1 . Piercing Weapon . | . . . . Special Melee Weapon . | . . . . Unidentified Prototypes . | . . . . Parts Lost 12 | . 1 1 10 Power 3 | . . 1 2 Propulsion 4 | . 1 . 3 Utility 2 | . . . 2 Weapon 3 | . . . 3 Highest Loss Streak 10 | . 1 1 10 To Critical Strikes . | . . . . Average Slot Usage (%) 87 | . 72 95 86 Engine 15 | . 14 20 11 Leg 25 | . . 30 31 Wheel 2 | . 15 . . Hover 2 | . 9 1 . Device 9 | . 1 12 10 Storage 7 | . . 7 10 Energy Gun 1 | . 9 . . Energy Cannon 16 | . 1 17 21 Ballistic Cannon 1 | . 6 1 . Slashing Weapon 1 | . 7 . . Naked Turns . | . . . . Heaviest Build 25 | 8 14 25 20 Greatest Support 45 | 20 20 45 45 Greatest Overweight (x) 6 | . 1 . 6 Average Overweight (x) . | . . . . Largest Inventory Capacity 5 | 5 5 5 5 Average Capacity 5 | 5 5 5 5 Most Carried 5 | 3 5 5 5 Average Carried 3 | . 3 4 3 Final Capacity 5 | 5 5 5 5 Final Carried 5 | 1 5 4 . Class Distribution -------------------- 100% | Mutant Dominant Class ---------------- Mutant | -10/Materials Mutant | -9/Materials Mutant | -9/Mines Resources | -11 -10 -9 -9 ----------- Run | Yrd Mat Mat Min Matter Collected 1009 | 263 130 499 117 Remotely . | . . . . Salvage Created 855 | 34 166 534 121 Parts 51 | 3 12 32 4 Haulers Intercepted . | . . . . Recyclers Shooed . | . . . . Parts Field Recycled . | . . . . Retrieved Matter . | . . . . Parts Self-Destructed . | . . . . Prevented . | . . . . Kills | -11 -10 -9 -9 ------- Run | Yrd Mat Mat Min Combat Hostiles Destroyed 31 | 1 7 16 7 Melee 1 | . 1 . . Guns 6 | 1 3 . 2 Cannons 21 | . 3 16 2 AOE 3 | . . . 3 Classes Destroyed 7 | 1 1 4 1 Builder 1 | . . 1 . Mechanic 1 | . . 1 . Operator 1 | . . 1 . Swarmer 6 | . 3 3 . Grunt 19 | 1 4 12 2 Duelist 1 | . . 1 . Assembled 5 | . . . 5 Best Kill Streak 6 | 1 3 6 5 Combat Bots Only 5 | 1 3 5 5 Max Kills in Single Turn 3 | 1 1 1 3 Gunslinging . | . . . . Exploded 3 | . . . 3 Melee 1 | . 1 . . Uniques/NPCs Destroyed . | . . . . Combat | -11 -10 -9 -9 -------- Run | Yrd Mat Mat Min Hostile Shots Fired 209 | 2 33 117 57 Missed 67 | . 10 39 18 Damage Taken 1891 | 22 204 944 721 Core 476 | . 74 163 239 Absorbed by Shields . | . . . . Regen/Repaired (Parts) 32 | . . 32 . Core Remaining (%) 85 | 100 70 . . Volleys Fired 85 | 3 17 55 10 Largest 2 | 2 2 2 2 Hottest 150 | 70 95 150 150 Shots Fired 143 | 6 32 90 15 Gun 32 | 6 23 . 3 Cannon 103 | . 9 83 11 Launcher 8 | . . 7 1 Special . | . . . . Kinetic 45 | 3 15 27 . Thermal 90 | 3 17 56 14 Explosive 8 | . . 7 1 Electromagnetic . | . . . . Robot Hit Streak 9 | 2 4 9 4 Robot Miss Streak 3 | 1 3 2 2 Penetration Max . | . . . . Secondary Targets 2 | . 2 . . Max Gunslinging Chain 1 | . 1 . . Shots Hit Robots 87 | 3 21 53 10 Core Hits 50 | 2 9 26 13 Critical Kills . | . . . . Critical Parts Destroyed . | . . . . Critical Strikes 2 | . 2 . . Burn 2 | . 2 . . Melee Attacks 5 | . 5 . . Impact . | . . . . Slashing 5 | . 5 . . Piercing . | . . . . Sneak Attacks . | . . . . Combat Hostiles . | . . . . Follow-up Attacks . | . . . . Damage Inflicted 2204 | 32 293 1478 401 Guns 204 | 32 141 . 31 Cannons 1456 | . 83 1198 175 Explosions 472 | . . 280 192 Melee 69 | . 69 . . Ramming 3 | . . . 3 Kinetic 373 | 19 94 260 . Thermal 1287 | 13 130 938 206 Explosive 472 | . . 280 192 Electromagnetic . | . . . . Impact . | . . . . Slashing 69 | . 69 . . Piercing . | . . . . Highest Corruption 10 | . . . 10 Average Corruption 8 | . . . 8 Corruption Purged . | . . . . Corruption Blocked . | . . . . Effects 1 | . . . 1 Message Errors 1 | . . . 1 Overload Shots . | . . . . Overflow Damage 53 | . . 49 4 Projectiles 49 | . . 49 . Explosions 4 | . . . 4 Melee . | . . . . Knockbacks 7 | . 2 5 . Impact . | . . . . Kinetic 7 | . 2 5 . Secondary . | . . . . Self-Inflicted Damage 36 | . . . 36 Shots 1 | . . . 1 Rammed . | . . . . Targets Rammed 3 | . . . 3 Kicked 3 | . . . 3 Crushed . | . . . . Highest Temperature 306 | 52 120 306 270 Average Temperature 93 | 26 57 102 130 Received Heat Transfer 634 | 12 66 456 100 Siege Activations . | . . . . Robots Corrupted . | . . . . Combat Hostiles . | . . . . Parts Fried . | . . . . Impact Corruptions . | . . . . Robots Melted . | . . . . Combat Hostiles . | . . . . Parts Melted 1 | . . 1 . Heat Transferred 2332 | 37 518 1443 334 Parts Sabotaged . | . . . . Parts Stolen . | . . . . Parts Stripped . | . . . . Power Chain Reactions . | . . . . Alert | -11 -10 -9 -9 ------- Run | Yrd Mat Mat Min Peak Influence 519 | 20 267 519 245 Initial 198 | . 13 112 198 Average 246 | 3 134 380 156 Maximum Alert Level 2 | . 1 2 1 Low Security (%) 49 | 100 86 8 79 Level 1 27 | . 13 41 20 Level 2 22 | . . 50 . Level 3 . | . . . . Level 4 . | . . . . Level 5 . | . . . . High Security . | . . . . Max Security . | . . . . Squads Dispatched 5 | . 3 2 . Investigation . | . . . . Extermination . | . . . . Reinforcement 5 | . 3 2 . Assault . | . . . . Garrison . | . . . . Intercept . | . . . . Searches Triggered . | . . . . Construction Impeded . | . . . . Haulers Reinforced . | . . . . Active Scanning Responses . | . . . . Cargo Convoy Interrupts . | . . . . Stealth | -11 -10 -9 -9 --------- Run | Yrd Mat Mat Min Distress Signals 5 | . 2 3 . Communications Jammed . | . . . . Distress Signals . | . . . . Times Spotted 62 | 1 15 27 19 Peak Tracking Total 19 | 1 4 4 19 Tactical Retreats 3 | . . 3 . Traps | -11 -10 -9 -9 ------- Run | Yrd Mat Mat Min Traps Triggered . | . . . . Indirectly . | . . . . Trap Hack Attempts . | . . . . Triggered . | . . . . Disarmed . | . . . . Reprogrammed . | . . . . Reused . | . . . . Traps Extracted . | . . . . Installed . | . . . . Triggered . | . . . . Machines | -11 -10 -9 -9 ---------- Run | Yrd Mat Mat Min Machines Disabled . | . . . . Max in Single Turn . | . . . . Machines Repaired . | . . . . Machines Dismantled . | . . . . Machines Sabotaged . | . . . . Overloaded Fab Kills . | . . . . Hacking | -11 -10 -9 -9 --------- Run | Yrd Mat Mat Min Machines Accessed 2 | . 1 1 . Terminals 1 | . 1 . . Fabricators . | . . . . Repair Stations 1 | . . 1 . Recycling Units . | . . . . Scanalyzers . | . . . . Garrison Access . | . . . . Total Hacks 3 | . 1 2 . Successful 3 | . 1 2 . Failed . | . . . . Catastrophic . | . . . . Database Lockouts . | . . . . Manual . | . . . . Terminals 1 | . 1 . . Fabricators . | . . . . Repair Stations 2 | . . 2 . Recycling Units . | . . . . Scanalyzers . | . . . . Garrison Access . | . . . . Terminal Hacks 1 | . 1 . . Locate Traps 1 | . 1 . . Fabricator Hacks . | . . . . Repair Station Hacks 2 | . . 2 . Scan Component 1 | . . 1 . Repair 1 | . . 1 . Recycling Unit Hacks . | . . . . Scanalyzer . | . . . . Garrison Access Hacks . | . . . . Unauthorized Hacks . | . . . . Terminals . | . . . . Fabricators . | . . . . Repair Stations . | . . . . Recycling Units . | . . . . Scanalyzers . | . . . . Garrison Access . | . . . . Data Cores Recovered . | . . . . Used . | . . . . Hacking Detections 1 | . . 1 . Full Trace Events . | . . . . Feedback Events . | . . . . Feedback Blocked . | . . . . Robot Schematics Acquired . | . . . . Robots Built . | . . . . Authchips . | . . . . Time . | . . . . Total Robot Build Rating . | . . . . Part Schematics Acquired . | . . . . Parts Built . | . . . . Authchips . | . . . . Time . | . . . . Total Part Build Rating . | . . . . Parts Repaired 1 | . . 1 . Time 38 | . . 38 . Parts Recycled . | . . . . Recycled Matter . | . . . . Retrieved Matter . | . . . . Retrieved Components . | . . . . Parts Scanalyzed . | . . . . Part Schematics Acquired . | . . . . Parts Damaged . | . . . . Bothacking | -11 -10 -9 -9 ------------ Run | Yrd Mat Mat Min Used RIF Installer . | . . . . Robots Hacked . | . . . . Non-combat . | . . . . Combat . | . . . . Robot Hacks Applied . | . . . . Relay Couplers Released . | . . . . Fabnet Peak Effective % . | . . . . Robots Rewired . | . . . . Allies Hacked . | . . . . Hacks Repelled . | . . . . Allies | -11 -10 -9 -9 -------- Run | Yrd Mat Mat Min Total Allies 3 | . . . 3 Largest Group 3 | . . . 3 Highest-Rated Group 63 | . . . 63 Highest-Rated Ally 31 | . . . 31 Total Orders . | . . . . Ally Attacks 6 | . . . 6 Total Damage 49 | . . . 49 Kills 1 | . . . 1 Allies Corrupted . | . . . . Allies Melted . | . . . . Intel | -11 -10 -9 -9 ------- Run | Yrd Mat Mat Min Robot Analysis Total . | . . . . Derelict Logs Recovered . | . . . . Drone Launches . | . . . . Drone Recoveries . | . . . . Exploration | -11 -10 -9 -9 ------------- Run | Yrd Mat Mat Min Turns Passed 1696 | 71 280 761 584 Spaces Moved 1236 | 71 246 481 438 Core 24 | 23 . . 1 Treads . | . . . . Legs 871 | . . 434 437 Wheels 185 | 48 137 . . Hover 156 | . 109 47 . Flight . | . . . . Fastest Speed 50 | 50 56 56 120 Average Speed 105 | 70 72 113 121 Slowest Speed 350 | 80 120 120 350 Overloaded Moves . | . . . . Propulsion Burnouts . | . . . . Robots Hopped . | . . . . Cave-ins Triggered . | . . . . Exploration Rate (%) 35 | 6 34 44 57 Regions Visited 3 Branch Regions 1 Pre-discovered Areas . | . . . . Known Exits Taken . | . . . . Unknown Exits Taken 3 | 1 1 1 . Scrap Searched 1 | . . . 1 Spaces Dug . | . . . . Terrain Destroyed 80 | . . 62 18 Melee . | . . . . Projectile 17 | . . 13 4 AOE 63 | . . 49 14 Terrain Rammed . | . . . . Walls Destroyed . | . . . . Machines Disabled . | . . . . Actions | -11 -10 -9 -9 --------- Run | Yrd Mat Mat Min Total 1470 | 85 305 603 477 Wait 46 | . 8 21 17 Move 1233 | 70 245 480 438 Hop . | . . . . Pick Up 23 | 6 9 6 2 Fast Attach 10 | . 4 6 . Attach 15 | 5 1 5 4 Detach 1 | . . 1 . Swap 25 | 1 7 16 1 Drop 24 | . 9 13 2 Fire 85 | 3 17 55 10 Melee 5 | . 5 . . Ram . | . . . . Kick 3 | . . . 3 Crush . | . . . . Escape Stasis . | . . . . Rewire . | . . . . Trap . | . . . . Miscellaneous . | . . . . Route ------- -11/Scrapyard -10/Materials -9/Materials (discovered 3 exits: [*Mat] / [*Min x2]) -9/Mines (discovered 1 exit: [*Exi]) History --------- Turn | Location | Event 2 | -11/Scrapyard | Met Revision 17 49 | -11/Scrapyard | Discovered new exit (range 8) 72 | -11/Scrapyard | Entered Materials 208 | -10/Materials | Discovered new exit (range 16) 311 | -10/Materials | Build established: Mutant 352 | -10/Materials | Entered another Materials area 352 | -9/Materials | Evolved 2 slots: Power x1, Propulsion x1 639 | -9/Materials | Discovered new exit (range 7) 735 | -9/Materials | Repaired Lgt. Deuterium Engine 980 | -9/Materials | Discovered new exit (range 3) 1099 | -9/Materials | Discovered new exit (range 9) 1113 | -9/Materials | Entered Mines 1152 | -9/Mines | Met a Derelict bent on vengeance 1272 | -9/Mines | Deemed a non-threat by the Exiles lab entrance 1272 | -9/Mines | Discovered new exit (range 5) 1408 | -9/Mines | Assisted by bots powering up and referring to "LRC-V3" 1657 | -9/Mines | Assembled infested the area 1683 | -9/Mines | System corruption reached 10% 1686 | -9/Mines | Core integrity fell below 50% 1694 | -9/Mines | Core integrity fell below 20% 1697 | -9/Mines | Destroyed by as-74372 with Assembled Heavy Rifle Last Messages --------------- System corrupted by crushing effect (+5). Knocked back. Carbon-fiber Leg destroyed. Lgt. Deuterium Engine destroyed. System corrupted by crushing effect (+5). [Achievement: System Compromised] Hvy. Particle Cannon destroyed. Imp. Heat Sink destroyed. as-67270 destroyed. Destroyed Asb. Hover Unit. as-38022 destroyed. as-73305 destroyed. Grenade Launcher destroyed. 8O-2BE(z) destroyed. Med. Matter Pod destroyed. F6IXP#G